fUSD/lending_fUSD_20250116
["ID","MTS","AMOUNT","RATE_DAILY","PERIOD"]
[349162841,1737001831691,-150.0,0.00041989,4]
[349162842,1737001831700,-1000.0,0.0004199,2]
[349162843,1737001831709,-150.99,0.0004199,2]
[349162844,1737001831719,-150.99,0.0004199,30]
[349162845,1737001831728,-499.99,0.0004199,2]
[349162846,1737001831737,-4219.08,0.0004199,2]
[349162847,1737001831746,-9999.99,0.0004199,2]
[349162848,1737001831756,-476.41,0.00042,2]
[349162849,1737001831765,-3420.14,0.00042027,2]
[349162850,1737001831774,-162.83,0.00042082,2]
[349162851,1737001831783,-166.58,0.00042082,2]
[349162852,1737001831792,-153.425469,0.00042151,30]
[349162853,1737001831801,-2000.0,0.00042251,120]
[349162854,1737001831810,-217.028,0.00042253,63]
[349162855,1737001831821,-1732.288,0.00042253,63]
[349162856,1737001831830,-980.19,0.00042398,30]
[349162857,1737001831839,-1621.68,0.00042398,30]
[349162858,1737001831849,-980.42,0.00042398,30]
[349162859,1737001831858,-436.72,0.00042603,30]
[349162860,1737001831867,-438.04,0.00042603,30]
[349162861,1737001831875,-438.04,0.00042603,30]
[349162862,1737001831884,-772.39,0.00042603,30]
[349162863,1737001831894,-772.39,0.00042603,30]
[349162864,1737001831903,-911.67,0.00042603,30]
[349162865,1737001831912,-772.39,0.00042603,30]
[349162866,1737001831921,-875.73,0.00042603,30]
[349162867,1737001831930,-150.9759844,0.00042629,4]
[349162868,1737001831943,-1053.66,0.00042739,120]
[349162869,1737001831952,-3817.73371541,0.0004288,2]
[349162870,1737001831961,-293.833,0.000429,2]
[349162871,1737001831970,-253.08657627,0.000429,9]
[349162872,1737001831981,-5000.0,0.00042913,2]
[349162873,1737001831990,-494.54851971,0.00042913,15]
[349162874,1737001831999,-163.3845806,0.00042913,15]
[349162875,1737001832008,-4505.6,0.0004293,117]
[349162876,1737001832017,-167.06,0.00042943,2]
[349162877,1737001832027,-494.54851963,0.00042967,15]
[349162878,1737001832036,-106193.62828555,0.00042999,120]
[349162879,1737001832045,-10478.9,0.00043,120]
[349162880,1737001832054,-42718.0,0.00043,120]
[349162881,1737001832063,-163.38458057,0.0004301,15]
[349162882,1737001832072,-1273.21321958,0.00043012,2]
[349162883,1737001832081,-54424.34438034,0.00043013,2]
[349162884,1737001832091,-500.83144616,0.00043013,25]
[349162885,1737001832099,-500.0,0.00043013,25]
[349162886,1737001832108,-500.0,0.00043013,25]
[349162887,1737001832117,-405.77965165,0.00043013,25]
[349162888,1737001832126,-500.0,0.00043013,25]
[349162889,1737001832135,-500.0,0.00043013,25]
[349162890,1737001832143,-500.0,0.00043013,25]
[349162891,1737001832152,-500.0,0.00043013,25]
[349162892,1737001832161,-500.0,0.00043013,25]
[349162893,1737001832170,-383.36006107,0.00043013,25]
[349162894,1737001832179,-506.3772778,0.00043013,25]
[349162895,1737001832188,-500.0,0.00043013,25]
[349162896,1737001832197,-500.0,0.00043013,25]
[349162897,1737001832207,-500.0,0.00043013,25]
[349162898,1737001832217,-599.54159535,0.00043013,25]
[349162899,1737001832226,-204.96914703,0.00043013,25]
[349162900,1737001832236,-500.0,0.00043013,25]
[349162901,1737001832245,-500.0,0.00043013,25]
[349162902,1737001832254,-500.0,0.00043013,25]
[349162903,1737001832263,-500.0,0.00043013,25]
[349162904,1737001832273,-503.92678692,0.00043013,25]
[349162905,1737001832282,-500.0,0.00043013,25]
[349162906,1737001832291,-500.0,0.00043013,25]
[349162907,1737001832300,-500.0,0.00043013,25]
[349162908,1737001832309,-500.0,0.00043013,25]
[349162909,1737001832318,-500.0,0.00043013,25]
[349162910,1737001832327,-500.0,0.00043013,25]
[349162911,1737001832336,-500.0,0.00043013,25]
[349162912,1737001832346,-559.96,0.00043013,25]
[349162913,1737001832355,-500.0,0.00043013,25]
[349162914,1737001832364,-504.70133593,0.00043013,25]
[349162915,1737001832373,-500.0,0.00043013,25]
[349162916,1737001832382,-500.0,0.00043013,25]
[349162917,1737001832391,-500.0,0.00043013,25]
[349162918,1737001832399,-501.11411403,0.00043013,25]
[349162919,1737001832409,-500.0,0.00043013,25]
[349162920,1737001832418,-501.62441516,0.00043013,25]
[349162921,1737001832427,-500.0,0.00043013,25]
[349162922,1737001832437,-529.90109859,0.00043013,25]
[349162923,1737001832446,-500.0,0.00043013,25]
[349162924,1737001832455,-500.0,0.00043013,25]
[349162925,1737001832464,-458.44432486,0.00043013,25]
[349162926,1737001832479,-42.44630552,0.00043013,25]
[349162927,1737001832488,-500.0,0.00043013,25]
[349162928,1737001832497,-231.39045836,0.00043013,25]
[349162929,1737001832509,-269.48431002,0.00043013,25]
[349162930,1737001832518,-501.72099142,0.00043013,25]
[349162931,1737001832527,-500.0,0.00043013,25]
[349162932,1737001832537,-521.61,0.00043013,25]
[349162933,1737001832546,-624.78890745,0.00043013,25]
[349162934,1737001832556,-604.27,0.00043013,25]
[349162935,1737001832565,-500.0,0.00043013,25]
[349162936,1737001832574,-500.0,0.00043013,25]
[349162937,1737001832584,-500.0,0.00043013,25]
[349162938,1737001832593,-506.79423674,0.00043013,25]
[349162939,1737001832602,-500.0,0.00043013,25]
[349162940,1737001832612,-500.0,0.00043013,25]
[349162941,1737001832621,-500.0,0.00043013,25]
[349162942,1737001832631,-635.14,0.00043013,25]
[349162943,1737001832639,-503.80691748,0.00043013,25]
[349162944,1737001832648,-500.0,0.00043013,25]
[349162945,1737001832658,-502.64247574,0.00043013,25]
[349162946,1737001832667,-500.0,0.00043013,25]
[349162947,1737001832675,-500.0,0.00043013,25]
[349162948,1737001832684,-441.54298731,0.00043013,25]
[349162949,1737001832693,-503.39091538,0.00043013,25]
[349162950,1737001832702,-266.84420989,0.00043013,25]
[349162951,1737001832711,-500.0,0.00043013,25]
[349162952,1737001832720,-500.0,0.00043013,25]
[349162953,1737001832729,-431.51687141,0.00043013,25]
[349162954,1737001832744,-68.48312859,0.00043013,25]
[349162955,1737001832753,-320.10828997,0.00043013,25]
[349162956,1737001832763,-179.89171003,0.00043013,25]
[349162957,1737001832772,-454.02614615,0.00043013,25]
[349162958,1737001832783,-45.97385385,0.00043013,25]
[349162959,1737001832792,-500.0,0.00043013,25]
[349162960,1737001832802,-500.0,0.00043013,25]
[349162961,1737001832811,-192.06614615,0.00043013,25]
[349162962,1737001832855,-307.93385385,0.00043013,25]
[349162963,1737001832864,-500.0,0.00043013,25]
[349162964,1737001832874,-528.14222076,0.00043013,25]
[349162965,1737001832883,-622.86,0.00043013,45]
[349162966,1737001832894,-500.0,0.00043013,25]
[349162967,1737001832903,-500.0,0.00043013,25]
[349162968,1737001832912,-501.62217079,0.00043013,25]
[349162969,1737001832921,-500.0,0.00043013,25]
[349162970,1737001832931,-500.0,0.00043013,25]
[349162971,1737001832940,-500.0,0.00043013,25]
[349162972,1737001832952,-555.45,0.00043013,25]
[349162973,1737001832962,-500.0,0.00043013,25]
[349162974,1737001832971,-500.0,0.00043013,25]
[349162975,1737001832980,-500.0,0.00043013,25]
[349162976,1737001832990,-500.0,0.00043013,25]
[349162977,1737001833001,-500.0,0.00043013,25]
[349162978,1737001833010,-500.0,0.00043013,25]
[349162979,1737001833020,-500.0,0.00043013,25]
[349162980,1737001833030,-500.0,0.00043013,25]
[349162981,1737001833039,-500.0,0.00043013,25]
[349162982,1737001833049,-564.57,0.00043013,25]
[349162983,1737001833058,-500.0,0.00043013,25]
[349162984,1737001833067,-500.0,0.00043013,25]
[349162985,1737001833077,-500.77998898,0.00043013,25]
[349162986,1737001833096,-599.29,0.00043013,25]
[349162987,1737001833116,-500.0,0.00043013,25]
[349162988,1737001833126,-520.41,0.00043013,2]
[349162989,1737001833135,-500.0,0.00043013,25]
[349162990,1737001833145,-183.30475175,0.00043013,25]
[349162991,1737001833154,-511.65082508,0.00043013,25]
[349162992,1737001833164,-500.0,0.00043013,25]
[349162993,1737001833173,-500.0,0.00043013,25]
[349162994,1737001833183,-500.0,0.00043013,25]
[349162995,1737001833193,-301.17,0.00043013,25]
[349162996,1737001833203,-215.43068295,0.00043013,25]
[349162997,1737001833213,-500.0,0.00043013,25]
[349162998,1737001833223,-500.0,0.00043013,25]
[349162999,1737001833231,-500.0,0.00043013,25]
[349163000,1737001833241,-500.0,0.00043013,25]
[349163001,1737001833250,-500.0,0.00043013,25]
[349163002,1737001833259,-500.0,0.00043013,25]
[349163003,1737001833268,-500.0,0.00043013,25]
[349163004,1737001833277,-500.0,0.00043013,25]
[349163005,1737001833286,-500.0,0.00043013,25]
[349163006,1737001833296,-500.0,0.00043013,25]
[349163007,1737001833305,-500.0,0.00043013,25]
[349163008,1737001833315,-500.0,0.00043013,25]
[349163009,1737001833324,-500.0,0.00043013,25]
[349163010,1737001833337,-500.0,0.00043013,25]
[349163011,1737001833346,-500.0,0.00043013,25]
[349163012,1737001833355,-500.0,0.00043013,25]
[349163013,1737001833364,-500.0,0.00043013,25]
[349163014,1737001833373,-500.0,0.00043013,25]
[349163015,1737001833382,-500.0,0.00043013,25]
[349163016,1737001833391,-500.0,0.00043013,25]
[349163017,1737001833401,-500.0,0.00043013,25]
[349163018,1737001833410,-175.08,0.00043013,25]
[349163019,1737001833420,-518.88422371,0.00043013,25]
[349163020,1737001833430,-500.0,0.00043013,25]
[349163021,1737001833440,-500.0,0.00043013,25]
[349163022,1737001833449,-500.0,0.00043013,25]
[349163023,1737001833458,-500.0,0.00043013,25]
[349163024,1737001833468,-507.49,0.00043013,25]
[349163025,1737001833477,-500.0,0.00043013,25]
[349163026,1737001833487,-500.0,0.00043013,25]
[349163027,1737001833497,-500.0,0.00043013,25]
[349163028,1737001833507,-500.0,0.00043013,25]
[349163029,1737001833516,-500.0,0.00043013,25]
[349163030,1737001833525,-500.0,0.00043013,25]
[349163031,1737001833535,-417.76,0.00043013,25]
[349163032,1737001833545,-578.6,0.00043013,25]
[349163033,1737001833555,-503.65375219,0.00043013,25]
[349163034,1737001833565,-500.0,0.00043013,25]
[349163035,1737001833574,-500.0,0.00043013,25]
[349163036,1737001833584,-500.0,0.00043013,25]
[349163037,1737001833594,-435.41,0.00043013,25]
[349163038,1737001833603,-500.0,0.00043013,25]
[349163039,1737001833612,-500.0,0.00043013,25]
[349163040,1737001833622,-500.0,0.00043013,25]
[349163041,1737001833631,-500.0,0.00043013,25]
[349163042,1737001833641,-508.06280915,0.00043013,25]
[349163043,1737001833650,-504.33638045,0.00043013,2]
[349163044,1737001833660,-267.26983023,0.00043013,25]
[349163045,1737001833669,-500.0,0.00043013,25]
[349163046,1737001833679,-500.0,0.00043013,25]
[349163047,1737001833688,-500.0,0.00043013,25]
[349163048,1737001833699,-528.75,0.00043013,25]
[349163049,1737001833709,-500.0,0.00043013,25]
[349163050,1737001833719,-648.14177578,0.00043013,25]
[349163051,1737001833729,-500.0,0.00043013,25]
[349163052,1737001833738,-500.0,0.00043013,25]
[349163053,1737001833748,-500.0,0.00043013,25]
[349163054,1737001833757,-500.0,0.00043013,25]
[349163055,1737001833766,-500.0,0.00043013,25]
[349163056,1737001833776,-500.0,0.00043013,25]
[349163057,1737001833786,-500.0,0.00043013,25]
[349163058,1737001833795,-500.0,0.00043013,25]
[349163059,1737001833805,-500.0,0.00043013,25]
[349163060,1737001833815,-500.0,0.00043013,25]
[349163061,1737001833824,-500.0,0.00043013,25]
[349163062,1737001833984,-500.0,0.00043013,25]
[349163063,1737001833995,-500.0,0.00043013,25]
[349163064,1737001834005,-500.0,0.00043013,25]
[349163065,1737001834016,-500.0,0.00043013,25]
[349163066,1737001834029,-500.0,0.00043013,25]
[349163067,1737001834041,-500.0,0.00043013,25]
[349163068,1737001834052,-500.0,0.00043013,25]
[349163069,1737001834063,-500.0,0.00043013,25]
[349163070,1737001834073,-500.0,0.00043013,25]
[349163071,1737001834083,-500.0,0.00043013,25]
[349163072,1737001834096,-500.0,0.00043013,25]
[349163073,1737001834106,-502.89083256,0.00043013,25]
[349163074,1737001834117,-500.0,0.00043013,25]
[349163075,1737001834128,-156.627586,0.00043013,25]
[349163076,1737001834138,-500.0,0.00043013,25]
[349163077,1737001834149,-500.0,0.00043013,25]
[349163078,1737001834159,-500.0,0.00043013,25]
[349163079,1737001834170,-500.0,0.00043013,25]
[349163080,1737001834180,-500.0,0.00043013,25]
[349163081,1737001834189,-500.0,0.00043013,25]
[349163082,1737001834196,-158.280976,0.00043013,25]
[349163083,1737001834205,-532.01589012,0.00043013,25]
[349163084,1737001834212,-500.0,0.00043013,25]
[349163085,1737001834221,-156.080894,0.00043013,25]
[349163086,1737001834231,-500.0,0.00043013,25]
[349163087,1737001834241,-500.0,0.00043013,25]
[349163088,1737001834251,-500.0,0.00043013,25]
[349163089,1737001834261,-500.0,0.00043013,25]
[349163090,1737001834270,-500.0,0.00043013,25]
[349163091,1737001834280,-500.0,0.00043013,25]
[349163092,1737001834290,-500.0,0.00043013,25]
[349163093,1737001834300,-500.0,0.00043013,25]
[349163094,1737001834310,-500.0,0.00043013,25]
[349163095,1737001834320,-500.0,0.00043013,25]
[349163096,1737001834330,-500.0,0.00043013,25]
[349163097,1737001834339,-500.0,0.00043013,25]
[349163098,1737001834350,-500.0,0.00043013,7]
[349163099,1737001834360,-177.561125,0.00043013,25]
[349163100,1737001834370,-500.0,0.00043013,25]
[349163101,1737001834379,-500.0,0.00043013,25]
[349163102,1737001834388,-706.42,0.00043013,25]
[349163103,1737001834397,-544.96467031,0.00043013,25]
[349163104,1737001834406,-500.0,0.00043013,25]
[349163105,1737001834415,-500.0,0.00043013,25]
[349163106,1737001834425,-500.0,0.00043013,25]
[349163107,1737001834434,-500.0,0.00043013,25]
[349163108,1737001834443,-500.0,0.00043013,25]
[349163109,1737001834452,-500.0,0.00043013,25]
[349163110,1737001834461,-500.0,0.00043013,25]
[349163111,1737001834470,-500.0,0.00043013,25]
[349163112,1737001834480,-500.0,0.00043013,25]
[349163113,1737001834489,-500.0,0.00043013,25]
[349163114,1737001834498,-500.0,0.00043013,25]
[349163115,1737001834507,-500.0,0.00043013,25]
[349163116,1737001834516,-500.0,0.00043013,25]
[349163117,1737001834525,-500.0,0.00043013,25]
[349163118,1737001834534,-500.0,0.00043013,2]
[349163119,1737001834544,-500.0,0.00043013,25]
[349163120,1737001834553,-500.0,0.00043013,25]
[349163121,1737001834562,-1063.01,0.00043013,25]
[349163122,1737001834572,-500.0,0.00043013,25]
[349163123,1737001834581,-500.0,0.00043013,25]
[349163124,1737001834590,-500.0,0.00043013,25]
[349163125,1737001834599,-500.0,0.00043013,25]
[349163126,1737001834608,-500.0,0.00043013,25]
[349163127,1737001834618,-500.0,0.00043013,25]
[349163128,1737001834628,-500.0,0.00043013,25]
[349163129,1737001834637,-500.0,0.00043013,25]
[349163130,1737001834646,-500.0,0.00043013,25]
[349163131,1737001834656,-500.0,0.00043013,25]
[349163132,1737001834665,-500.0,0.00043013,25]
[349163133,1737001834675,-500.0,0.00043013,25]
[349163134,1737001834686,-500.0,0.00043013,25]
[349163135,1737001834695,-500.0,0.00043013,25]
[349163136,1737001834705,-500.0,0.00043013,25]
[349163137,1737001834715,-500.0,0.00043013,25]
[349163138,1737001834725,-500.0,0.00043013,25]
[349163139,1737001834734,-500.0,0.00043013,25]
[349163140,1737001834744,-500.0,0.00043013,25]
[349163141,1737001834754,-500.0,0.00043013,25]
[349163142,1737001834764,-611.07,0.00043013,25]
[349163143,1737001834774,-500.0,0.00043013,25]
[349163144,1737001834783,-500.0,0.00043013,25]
[349163145,1737001834793,-500.0,0.00043013,25]
[349163146,1737001834803,-500.0,0.00043013,25]
[349163147,1737001834812,-500.0,0.00043013,25]
[349163148,1737001834822,-500.0,0.00043013,25]
[349163149,1737001834831,-500.0,0.00043013,25]
[349163150,1737001834841,-500.0,0.00043013,25]
[349163151,1737001834851,-503.97087973,0.00043013,25]
[349163152,1737001834864,-723.17,0.00043013,25]
[349163153,1737001834874,-500.0,0.00043013,25]
[349163154,1737001834884,-500.0,0.00043013,25]
[349163155,1737001834894,-500.0,0.00043013,25]
[349163156,1737001834903,-589.44,0.00043013,25]
[349163157,1737001834913,-580.31,0.00043013,25]
[349163158,1737001834926,-505.25,0.00043013,25]
[349163159,1737001834937,-500.0,0.00043013,25]
[349163160,1737001834948,-500.0,0.00043013,25]
[349163161,1737001834957,-500.0,0.00043013,25]
[349163162,1737001834967,-500.0,0.00043013,25]
[349163163,1737001834977,-500.0,0.00043013,25]
[349163164,1737001834987,-500.0,0.00043013,25]
[349163165,1737001834997,-500.0,0.00043013,25]
[349163166,1737001835007,-500.0,0.00043013,25]
[349163167,1737001835018,-500.0,0.00043013,25]
[349163168,1737001835028,-500.0,0.00043013,25]
[349163169,1737001835038,-500.0,0.00043013,25]
[349163170,1737001835048,-500.0,0.00043013,25]
[349163171,1737001835059,-500.0,0.00043013,25]
[349163172,1737001835069,-500.0,0.00043013,25]
[349163173,1737001835079,-610.33,0.00043013,25]
[349163174,1737001835089,-500.0,0.00043013,25]
[349163175,1737001835100,-500.0,0.00043013,25]
[349163176,1737001835110,-500.0,0.00043013,25]
[349163177,1737001835120,-500.0,0.00043013,25]
[349163178,1737001835130,-500.0,0.00043013,25]
[349163179,1737001835141,-500.0,0.00043013,25]
[349163180,1737001835151,-500.0,0.00043013,25]
[349163181,1737001835160,-500.0,0.00043013,25]
[349163182,1737001835170,-504.21143988,0.00043013,25]
[349163183,1737001835180,-500.0,0.00043013,25]
[349163184,1737001835189,-500.0,0.00043013,25]
[349163185,1737001835199,-500.0,0.00043013,25]
[349163186,1737001835209,-1665.64,0.00043013,120]
[349163187,1737001835218,-500.0,0.00043013,25]
[349163188,1737001835227,-500.0,0.00043013,25]
[349163189,1737001835237,-500.0,0.00043013,25]
[349163190,1737001835246,-500.0,0.00043013,25]
[349163191,1737001835256,-500.0,0.00043013,25]
[349163192,1737001835265,-500.0,0.00043013,25]
[349163193,1737001835275,-500.0,0.00043013,25]
[349163194,1737001835285,-500.0,0.00043013,25]
[349163195,1737001835295,-500.0,0.00043013,25]
[349163196,1737001835304,-500.0,0.00043013,25]
[349163197,1737001835314,-500.0,0.00043013,25]
[349163198,1737001835323,-500.0,0.00043013,25]
[349163199,1737001835333,-500.0,0.00043013,25]
[349163200,1737001835344,-501.51802292,0.00043013,25]
[349163201,1737001835354,-500.0,0.00043013,25]
[349163202,1737001835363,-519.99977351,0.00043013,25]
[349163203,1737001835373,-1000.0,0.00043013,25]
[349163204,1737001835383,-500.0,0.00043013,25]
[349163205,1737001835393,-500.0,0.00043013,25]
[349163206,1737001835403,-500.0,0.00043013,25]
[349163207,1737001835412,-500.0,0.00043013,25]
[349163208,1737001835421,-500.0,0.00043013,25]
[349163209,1737001835431,-500.0,0.00043013,25]
[349163210,1737001835440,-500.0,0.00043013,25]
[349163211,1737001835449,-500.0,0.00043013,25]
[349163212,1737001835459,-500.0,0.00043013,25]
[349163213,1737001835468,-500.0,0.00043013,25]
[349163214,1737001835477,-500.0,0.00043013,25]
[349163215,1737001835487,-500.0,0.00043013,25]
[349163216,1737001835496,-500.0,0.00043013,7]
[349163217,1737001835506,-500.0,0.00043013,25]
[349163218,1737001835516,-500.0,0.00043013,25]
[349163219,1737001835525,-500.0,0.00043013,25]
[349163220,1737001835534,-500.0,0.00043013,25]
[349163221,1737001835543,-500.0,0.00043013,25]
[349163222,1737001835552,-682.59,0.00043013,25]
[349163223,1737001835561,-500.0,0.00043013,25]
[349163224,1737001835570,-500.0,0.00043013,25]
[349163225,1737001835579,-500.0,0.00043013,25]
[349163226,1737001835588,-500.0,0.00043013,25]
[349163227,1737001835598,-500.0,0.00043013,25]
[349163228,1737001835607,-500.0,0.00043013,25]
[349163229,1737001835616,-500.0,0.00043013,25]
[349163230,1737001835625,-500.0,0.00043013,25]
[349163231,1737001835634,-522.87,0.00043013,25]
[349163232,1737001835644,-570.76,0.00043013,25]
[349163233,1737001835653,-500.0,0.00043013,25]
[349163234,1737001835663,-500.0,0.00043013,25]
[349163235,1737001835672,-500.0,0.00043013,25]
[349163236,1737001835681,-500.0,0.00043013,25]
[349163237,1737001835690,-536.98,0.00043013,25]
[349163238,1737001835699,-500.0,0.00043013,25]
[349163239,1737001835708,-501.92,0.00043013,25]
[349163240,1737001835717,-500.0,0.00043013,25]
[349163241,1737001835726,-500.0,0.00043013,25]
[349163242,1737001835735,-500.0,0.00043013,25]
[349163243,1737001835744,-500.0,0.00043013,25]
[349163244,1737001835753,-500.0,0.00043013,25]
[349163245,1737001835763,-500.0,0.00043013,25]
[349163246,1737001835772,-500.0,0.00043013,25]
[349163247,1737001835781,-500.0,0.00043013,25]
[349163248,1737001835790,-500.0,0.00043013,25]
[349163249,1737001835799,-630.09,0.00043013,25]
[349163250,1737001835809,-1382.26,0.00043013,25]
[349163251,1737001835817,-500.0,0.00043013,25]
[349163252,1737001835826,-500.0,0.00043013,25]
[349163253,1737001835835,-500.0,0.00043013,25]
[349163254,1737001835844,-500.0,0.00043013,25]
[349163255,1737001835853,-581.72,0.00043013,25]
[349163256,1737001835862,-500.0,0.00043013,25]
[349163257,1737001835871,-500.0,0.00043013,25]
[349163258,1737001835881,-500.0,0.00043013,25]
[349163259,1737001835889,-500.0,0.00043013,25]
[349163260,1737001835899,-494.54851963,0.00043021,15]
[349163261,1737001835908,-494.54851963,0.00043075,15]
[349163262,1737001835916,-223.80403178,0.00043084,15]
[349163263,1737001835927,-163.38458057,0.00043108,15]
[349163264,1737001835937,-494.54851963,0.00043129,15]
[349163265,1737001835951,-253.08657619,0.00043141,9]
[349163266,1737001835960,-33027.71546361,0.00043165,120]
[349163267,1737001835969,-494.54851963,0.00043184,15]
[349163268,1737001835983,-1000.0,0.000432,7]
[349163269,1737001835992,-163.38458057,0.00043205,15]
[349163270,1737001836002,-1960.84,0.0004322,30]
[349163271,1737001836012,-979.5,0.0004322,30]
[349163272,1737001836022,-992.25,0.0004322,30]
[349163273,1737001836032,-978.7,0.0004322,30]
[349163274,1737001836041,-494.54851963,0.00043238,15]
[349163275,1737001836050,-1304.22920512,0.00043249,120]
[349163276,1737001836060,-500.0,0.00043264,25]
[349163277,1737001836069,-500.0,0.00043264,25]
[349163278,1737001836078,-500.0,0.00043264,25]
[349163279,1737001836087,-500.0,0.00043264,25]
[349163280,1737001836097,-500.0,0.00043264,25]
[349163281,1737001836108,-500.0,0.00043264,25]
[349163282,1737001836118,-500.0,0.00043264,25]
[349163283,1737001836127,-500.0,0.00043264,25]
[349163284,1737001836136,-500.0,0.00043264,25]
[349163285,1737001836146,-500.0,0.00043264,25]
[349163286,1737001836155,-500.0,0.00043264,25]
[349163287,1737001836165,-500.0,0.00043264,25]
[349163288,1737001836174,-500.0,0.00043264,25]
[349163289,1737001836185,-500.0,0.00043264,25]
[349163290,1737001836195,-500.0,0.00043264,25]
[349163291,1737001836204,-500.0,0.00043264,25]
[349163292,1737001836214,-500.0,0.00043264,25]
[349163293,1737001836224,-500.0,0.00043264,25]
[349163294,1737001836234,-500.0,0.00043264,25]
[349163295,1737001836243,-500.0,0.00043264,25]
[349163296,1737001836252,-500.0,0.00043264,25]
[349163297,1737001836262,-500.0,0.00043264,25]
[349163298,1737001836272,-500.0,0.00043264,25]
[349163299,1737001836281,-500.0,0.00043264,25]
[349163300,1737001836290,-500.0,0.00043264,25]
[349163301,1737001836300,-500.0,0.00043264,25]
[349163302,1737001836310,-500.0,0.00043264,25]
[349163303,1737001836319,-682.59,0.00043264,25]
[349163304,1737001836329,-500.0,0.00043264,25]
[349163305,1737001836339,-500.0,0.00043264,25]
[349163306,1737001836349,-500.0,0.00043264,25]
[349163307,1737001836358,-522.87,0.00043264,25]
[349163308,1737001836368,-500.0,0.00043264,25]
[349163309,1737001836377,-536.98,0.00043264,25]
[349163310,1737001836387,-500.0,0.00043264,25]
[349163311,1737001836396,-500.0,0.00043264,25]
[349163312,1737001836405,-500.0,0.00043264,25]
[349163313,1737001836414,-163.99,0.00043264,25]
[349163314,1737001836424,-630.09,0.00043264,25]
[349163315,1737001836434,-1382.26,0.00043264,25]
[349163316,1737001836443,-151.0,0.00043265,2]
[349163317,1737001836452,-151.94092,0.00043265,14]
[349163318,1737001836462,-151.94092,0.00043265,14]
[349163319,1737001836471,-151.0,0.00043265,14]
[349163320,1737001836481,-173.033609,0.00043265,14]
[349163321,1737001836490,-151.0,0.00043265,14]
[349163322,1737001836500,-151.0,0.00043265,14]
[349163323,1737001836509,-151.0,0.00043265,14]
[349163324,1737001836519,-153.025438,0.00043265,14]
[349163325,1737001836528,-151.0,0.00043265,14]
[349163326,1737001836540,-1270.695934,0.00043265,14]
[349163327,1737001836552,-1270.695934,0.00043265,14]
[349163328,1737001836561,-500.0,0.00043266,25]
[349163329,1737001836571,-437.65,0.00043266,25]
[349163330,1737001836580,-500.0,0.00043266,25]
[349163331,1737001836589,-500.0,0.00043266,25]
[349163332,1737001836599,-500.0,0.00043266,25]
[349163333,1737001836609,-500.0,0.00043266,25]
[349163334,1737001836618,-500.0,0.00043266,25]
[349163335,1737001836627,-500.0,0.00043266,25]
[349163336,1737001836636,-500.0,0.00043267,25]
[349163337,1737001836646,-401.8385903,0.00043267,25]
[349163338,1737001836655,-153.82477832,0.00043267,25]
[349163339,1737001836664,-500.0,0.00043267,25]
[349163340,1737001836673,-500.0,0.00043267,25]